bitfinex-derivatives/quotes_ETHF0:USTF0_20240817
["timestamp","ask_amount","ask_price","bid_price","bid_amount"]
[1723893814350,8.71530089,2600.1,2600.0,0.3701]
[1723893815546,4.86890089,2600.1,2600.0,0.3701]
[1723893816349,1.44196,2600.0,2599.9,0.00471722]
[1723893816554,7.39872564,2600.0,2599.9,0.00471722]
[1723893816747,7.63734084,2600.0,2599.9,0.00471722]
[1723893817053,5.62305292,2600.0,2599.9,0.00471722]
[1723893817251,12.63396093,2600.0,2599.9,0.00471722]
[1723893817940,12.53787681,2600.0,2599.9,0.00471722]
[1723893818143,12.63396622,2600.0,2599.9,0.00471722]
[1723893818465,12.63396671,2600.0,2599.9,0.00471722]
[1723893819346,12.39535756,2600.0,2599.9,0.00471722]
[1723893820254,10.38444955,2600.0,2599.9,0.00471722]
[1723893820645,8.59224955,2600.0,2599.9,0.00471722]
[1723893820846,13.59224955,2600.0,2599.9,0.00471722]
[1723893822148,13.59227747,2600.0,2599.9,0.00471722]
[1723893822360,15.0993891,2600.0,2599.9,0.00471722]
[1723893822659,6.8915891,2600.0,2599.9,0.00471722]
[1723893822849,15.0993891,2600.0,2599.9,0.00471722]
[1723893823050,10.0993891,2600.0,2599.9,0.00471722]
[1723893826055,10.00327163,2600.0,2599.9,0.00471722]
[1723893826248,10.09937756,2600.0,2599.9,0.00471722]
[1723893827362,6.89157756,2600.0,2599.9,0.00471722]
[1723893827951,3.30390593,2600.0,2599.9,0.00471722]
[1723893828153,1.8216,2600.1,2599.9,0.35961722]
[1723893828351,1.8216,2600.1,2599.9,0.73831722]
[1723893831750,3.26353,2600.1,2599.9,0.73831722]
[1723893831952,1.20411668,2600.0,2599.9,0.73831722]
[1723893832756,1.108,2600.0,2599.9,0.73831722]
[1723893832962,1.2041176,2600.0,2599.9,0.73831722]
[1723893834569,1.20411521,2600.0,2599.9,0.73831722]
[1723893835165,1.20411521,2600.0,2599.9,0.38341722]
[1723893838562,1.108,2600.0,2599.9,0.38341722]
[1723893838763,1.20411431,2600.0,2599.9,0.38341722]
[1723893841962,1.20411474,2600.0,2599.9,0.38341722]
[1723893842159,6.49247474,2600.0,2599.9,0.00471722]
[1723893842358,8.71718637,2600.0,2599.9,0.00471722]
[1723893842561,1.44213,2599.7,2599.6,0.3473]
[1723893842867,2.64624474,2599.7,2599.6,0.3473]
[1723893843369,6.84724474,2599.7,2599.5,0.00577134]
[1723893843572,0.44731895,2599.6,2599.5,0.01010058]
[1723893844376,1.88949895,2599.6,2599.5,0.01010058]
[1723893844570,0.44731895,2599.6,2599.5,0.01010058]
[1723893845675,0.44731836,2599.6,2599.5,0.01010058]
[1723893849063,0.09611836,2599.6,2599.5,0.01010058]
[1723893849268,0.09611836,2599.6,2599.5,0.38480058]
[1723893849577,5.82291253,2599.8,2599.5,0.38480058]
[1723893849872,0.0961608,2599.7,2599.5,0.38480058]
[1723893850173,0.0961608,2599.7,2599.6,0.3448]
[1723893852261,1.60327333,2599.7,2599.6,0.3448]
[1723893852464,0.0961608,2599.7,2599.6,0.3448]
[1723893853276,1.60327333,2599.7,2599.6,0.3448]
[1723893854865,1.50711253,2599.7,2599.6,0.3448]
[1723893855067,1.60328084,2599.7,2599.6,0.3448]
[1723893856067,1.60328084,2599.7,2599.6,6.30708548]
[1723893856270,0.09616831,2599.7,2599.6,10.17632766]
[1723893856563,0.09616831,2599.7,2599.6,8.66449943]
[1723893856767,0.09616823,2599.7,2599.6,8.66449943]
[1723893858183,0.09616823,2599.7,2599.6,7.22231943]
[1723893858473,0.09616844,2599.7,2599.6,5.2992]
[1723893858679,0.09616844,2599.7,2599.6,7.22225648]
[1723893859487,1.50711253,2599.9,2599.6,7.22225648]
[1723893859779,4.71491253,2600.0,2599.8,1.00792655]
[1723893859969,4.71491253,2600.0,2599.9,0.6983]
[1723893860177,4.8150253,2600.0,2599.9,0.6983]
[1723893860375,3.30396826,2600.0,2599.9,0.6983]
[1723893860676,0.09616826,2600.0,2599.9,12.47546568]
[1723893860979,8.40811847,2600.4,2600.0,1.44191]
[1723893861174,5.03897518,2600.5,2600.3,1.00778169]
[1723893861379,5.03897518,2600.5,2600.4,0.3778]
[1723893864181,3.52785671,2600.5,2600.4,0.3778]
[1723893865386,1.108,2600.5,2600.4,0.3778]
[1723893868081,3.35653026,2600.6,2600.4,0.3778]
[1723893868388,1.84541179,2600.6,2600.4,0.3778]
[1723893868582,1.84541179,2600.6,2600.4,0.7463]
[1723893868780,1.108,2600.5,2600.4,0.7463]
[1723893868977,1.108,2600.5,2600.4,0.3778]
[1723893870673,0.00421179,2600.6,2600.4,5.3314]
[1723893870877,0.00421179,2600.6,2600.5,1.8559]
[1723893871681,0.00421179,2600.6,2600.5,5.7015]
[1723893873383,0.00421179,2600.6,2600.5,4.5935]
[1723893874182,0.00421179,2600.6,2600.5,5.7015]
[1723893880790,0.00421179,2600.6,2600.5,1.4813]
[1723893881085,0.00421179,2600.6,2600.4,0.3778]
[1723893881685,1.108,2600.5,2600.3,1.108]
[1723893881888,2.54977,2600.4,2599.9,9.6998]
[1723893882095,6.1287,2600.3,2599.9,6.492]
[1723893883391,0.3711,2600.3,2600.1,1.108]
[1723893883884,0.3711,2600.3,2600.2,0.3482]
[1723893884091,1.8129,2600.3,2600.2,0.3482]
[1723893885385,0.3711,2600.3,2600.2,0.3482]
[1723893892293,0.3639,2600.4,2600.2,0.3482]
[1723893892498,0.3639,2600.4,2600.2,1.0934]
[1723893893096,0.3639,2600.4,2600.2,2.2014]
[1723893899893,0.3639,2600.4,2600.2,1.829]
[1723893900099,0.09609009,2600.3,2600.2,1.829]
[1723893900303,0.3639,2600.4,2600.2,1.829]
[1723893900600,0.09609019,2600.3,2600.2,1.829]
[1723893901503,1.44191,2600.1,2600.0,1.00778169]
[1723893901706,1.20410238,2600.1,2599.9,0.3678]
[1723893901907,0.47280238,2600.0,2599.9,0.3678]
[1723893902403,1.91476238,2600.0,2599.9,0.3678]
[1723893902604,0.47280238,2600.0,2599.7,2.46068169]
[1723893902804,0.09610238,2599.9,2599.7,2.46068169]
[1723893903011,0.09610238,2599.9,2599.7,2.82848169]
[1723893903401,1.44202,2599.9,2599.7,0.7127]
[1723893903608,0.09611487,2599.8,2599.7,0.7127]
[1723893903909,0.46991487,2599.8,2599.7,0.7127]
[1723893904104,0.3738,2599.8,2599.7,0.7127]
[1723893904305,0.4699176,2599.8,2599.7,0.7127]
[1723893905018,0.0961176,2599.8,2599.7,1.8207]
[1723893905512,0.3767,2600.0,2599.7,1.8207]
[1723893905703,0.09611506,2599.9,2599.7,1.8207]
[1723893905898,0.09611941,2599.8,2599.7,1.8207]
[1723893906509,0.09611922,2599.8,2599.7,1.8207]
[1723893907411,0.3767,2600.0,2599.7,1.8207]
[1723893907616,0.09611948,2599.9,2599.7,1.8207]
[1723893907916,0.3767,2600.0,2599.7,1.8207]
[1723893908111,0.09612192,2599.9,2599.7,1.8207]
[1723893908314,0.3767,2600.0,2599.7,1.8207]
[1723893908514,0.09612454,2599.9,2599.7,1.8207]
[1723893908707,0.3767,2600.0,2599.7,1.8207]
[1723893908906,0.09612697,2599.9,2599.7,1.8207]
[1723893909105,0.3767,2600.0,2599.7,1.8207]
[1723893909301,0.09612283,2599.9,2599.7,1.8207]
[1723893909501,0.3767,2600.0,2599.7,1.8207]
[1723893909706,0.0961246,2599.9,2599.7,1.8207]
[1723893909915,0.3767,2600.0,2599.7,1.8207]
[1723893910101,0.09612472,2599.9,2599.7,1.8207]
[1723893910415,0.3767,2600.0,2599.7,1.8207]
[1723893910613,0.09612716,2599.9,2599.7,1.8207]
[1723893910916,0.3767,2600.0,2599.7,1.8207]
[1723893911415,0.09612427,2599.9,2599.7,1.8207]
[1723893911614,0.3767,2600.0,2599.7,1.8207]
[1723893911811,0.09612618,2599.9,2599.7,1.8207]
[1723893912111,0.3767,2600.0,2599.7,1.8207]
[1723893912619,0.09612495,2599.9,2599.7,1.8207]
[1723893912811,0.3767,2600.0,2599.7,1.8207]
[1723893915005,4.71891847,2600.2,2599.9,1.108]
[1723893915206,0.09611363,2600.1,2600.0,0.3504]
[1723893915417,0.09610675,2600.1,2600.0,0.6989]
[1723893915614,4.96968671,2600.3,2600.0,0.6989]
[1723893915913,0.09610478,2600.2,2600.0,0.6989]
[1723893916115,4.96968671,2600.3,2600.0,0.6989]
[1723893916311,0.09610304,2600.2,2600.0,0.6989]
[1723893916508,3.52785671,2600.3,2600.1,1.108]
[1723893918916,0.7309,2600.4,2600.1,1.108]
[1723893919111,0.09609435,2600.3,2600.1,1.108]
[1723893919315,0.7309,2600.4,2600.1,1.108]
[1723893919514,2.95699026,2600.6,2600.3,1.108]
[1723893919822,0.09607817,2600.5,2600.4,0.3466]
[1723893920216,1.11221179,2600.6,2600.4,0.3466]
[1723893920412,0.09607694,2600.5,2600.4,0.3466]
[1723893920812,1.11221179,2600.6,2600.4,0.3466]
[1723893921120,0.09607616,2600.5,2600.4,0.3466]
[1723893922019,2.62333026,2600.6,2600.4,0.3466]
[1723893922221,0.09607815,2600.5,2600.4,0.3466]
[1723893922728,0.0960764,2600.5,2600.4,0.3466]
[1723893923313,2.62333026,2600.6,2600.4,0.3466]
[1723893923517,0.0960849,2600.5,2600.4,0.3466]
[1723893923727,3.2078,2600.5,2600.4,0.3466]
[1723893923924,3.30388852,2600.5,2600.4,0.3466]
[1723893924926,0.09608852,2600.5,2600.4,0.3466]
[1723893925527,0.09608852,2600.5,2600.4,0.7237]
[1723893926221,2.62333026,2600.6,2600.4,0.7237]
[1723893926423,0.09607588,2600.5,2600.4,0.7237]
[1723893927831,2.62333026,2600.6,2600.4,0.7237]
[1723893928221,0.09607647,2600.5,2600.4,0.7237]
[1723893931430,0.09607647,2600.5,2600.4,1.0822]
[1723893933523,0.09607632,2600.5,2600.4,1.0822]
[1723893933937,0.09607632,2600.5,2600.4,1.14744861]
[1723893934129,0.09607632,2600.5,2600.4,0.78894861]
[1723893934837,1.51533026,2600.6,2600.4,0.78894861]
[1723893935032,0.09608485,2600.5,2600.4,0.78894861]
[1723893935432,0.09608484,2600.5,2600.4,0.78894861]
[1723893935630,0.09608484,2600.5,2600.4,0.8488228]
[1723893937836,0.09608484,2600.5,2600.4,0.4717228]
[1723893939245,0.09607085,2600.5,2600.4,0.4717228]
[1723893939842,0.00421179,2600.6,2600.4,10.7590328]
[1723893940039,0.00421179,2600.6,2600.5,5.3305]
[1723893940243,0.00421179,2600.6,2600.5,6.68188169]
[1723893940440,0.00421179,2600.6,2600.5,8.12357169]
[1723893940638,3.52785671,2601.0,2600.5,12.44101514]
[1723893940838,0.7311,2601.1,2600.9,1.108]
[1723893941139,1.51111847,2601.2,2601.0,0.3725]
[1723893941343,1.51111847,2601.2,2601.0,0.7494]
[1723893941646,1.51548146,2601.2,2601.1,0.02909749]
[1723893941844,1.6115056,2601.2,2601.1,0.02909749]
[1723893942443,0.10038713,2601.2,2601.1,0.02909749]
[1723893942650,0.00436299,2601.2,2601.1,0.02909749]
[1723893942848,1.44566299,2601.2,2601.1,0.02909749]
[1723893943152,6.80158146,2601.2,2601.1,0.02909749]
[1723893943346,0.00436299,2601.2,2601.1,0.02909749]
[1723893945062,1.51548146,2601.2,2601.1,0.02909749]
[1723893945354,0.00436299,2601.2,2601.1,0.02909749]
[1723893949267,0.00436299,2601.2,2601.1,1.13709749]
[1723893949462,0.00436299,2601.2,2601.1,0.02909749]
[1723893954162,0.00436299,2601.2,2601.1,1.13709749]
[1723893954364,0.00436299,2601.2,2601.1,4.98189749]
[1723893962372,3.21216299,2601.2,2601.1,1.13709749]
[1723893962671,0.00436299,2601.2,2601.1,1.13709749]
[1723893963161,0.34856299,2601.2,2601.1,1.13709749]
[1723893966470,0.34856299,2601.2,2601.1,0.02909749]
[1723893966776,3.55636299,2601.2,2601.1,0.02909749]
[1723893968970,3.55636299,2601.2,2601.1,1.13709749]
[1723893970171,0.34856299,2601.2,2601.1,1.13709749]
[1723893970771,0.00436299,2601.2,2601.1,1.13709749]
[1723893972379,0.00436299,2601.2,2601.1,1.51369749]
[1723893972578,0.00436299,2601.2,2601.1,5.35849749]
[1723893976388,0.00436299,2601.2,2601.1,1.51369749]
[1723893976979,0.00436299,2601.2,2601.1,0.02909749]
[1723893977185,1.44143,2601.0,2600.8,0.00577134]
[1723893977476,5.36787,2600.9,2600.8,0.00577134]
[1723893977683,5.36787,2600.9,2600.7,1.108]
[1723893977684,11.49544874,2600.9,2600.3,1.00477019]
[1723893977987,1.50948129,2600.7,2600.5,1.108]
[1723893978176,2.95103129,2600.8,2600.6,1.108]
[1723893978576,6.79583129,2600.8,2600.6,1.108]
[1723893979285,1.50948129,2600.7,2600.6,1.108]
[1723893979483,2.95106129,2600.7,2600.4,0.00577134]
[1723893979889,3.2078,2600.6,2600.4,0.00577134]
[1723893980082,1.44169,2600.5,2600.4,0.00577134]
[1723893980284,3.82749801,2600.5,2600.4,0.00577134]
[1723893980481,7.67309801,2600.5,2600.4,0.00577134]
[1723893981292,5.66219,2600.5,2600.4,0.00577134]
[1723893981988,4.2205,2600.5,2600.4,0.00577134]
[1723893982590,5.72980701,2600.5,2600.4,1.11377134]
[1723893982790,1.50930701,2600.5,2600.4,1.11377134]
[1723893986497,1.50930701,2600.6,2600.4,1.11377134]
[1723893989600,4.71710701,2600.7,2600.4,1.11377134]
[1723893990101,2.95095701,2600.6,2600.4,1.11377134]
[1723893990889,1.50930701,2600.6,2600.4,1.11377134]
[1723893991496,6.15870701,2600.7,2600.4,1.11377134]
[1723893994997,2.95090701,2600.7,2600.4,1.11377134]
[1723893995197,6.15870701,2600.7,2600.4,1.11377134]
[1723893995899,2.95090701,2600.7,2600.4,1.11377134]
[1723893996105,6.15870701,2600.7,2600.4,1.11377134]
[1723893999906,2.95090701,2600.7,2600.4,1.11377134]
[1723894000100,6.15870701,2600.7,2600.4,1.11377134]
[1723894000510,4.6494,2600.7,2600.4,1.11377134]
[1723894000804,6.15870701,2600.7,2600.4,1.11377134]
[1723894003004,4.6494,2600.7,2600.4,1.11377134]
[1723894004002,4.6494,2600.7,2600.4,0.00577134]
[1723894004606,1.4416,2600.7,2600.4,0.00577134]
[1723894004813,4.6494,2600.7,2600.4,0.00577134]
[1723894005109,4.6494,2600.7,2600.5,1.108]
[1723894005509,4.6494,2600.7,2600.6,0.3758]
[1723894005903,8.4942,2600.7,2600.6,0.3758]
[1723894006407,4.6494,2600.7,2600.6,0.3758]
[1723894007106,6.15870701,2600.7,2600.5,1.108]
[1723894007510,4.6494,2600.7,2600.5,1.108]
[1723894008013,6.15870701,2600.7,2600.5,1.108]
[1723894008712,1.44164,2600.6,2600.5,1.108]
[1723894009015,1.44164,2600.6,2600.4,0.00577134]
[1723894009318,2.1684,2600.5,2600.4,0.00577134]
[1723894009612,3.6404,2600.5,2600.4,0.00577134]
[1723894009809,1.44188,2600.2,2599.8,3.5804]
[1723894010113,1.108,2600.0,2599.9,0.3508]
[1723894010415,1.44203,2599.9,2599.6,1.4621]
[1723894010603,1.108,2600.0,2599.7,1.4523]
[1723894011217,2.51965,2600.1,2599.9,1.108]
[1723894011419,2.51965,2600.1,2600.0,0.3443]
[1723894012015,6.36605,2600.1,2600.0,0.3443]
[1723894013311,6.00245,2600.1,2600.0,0.3443]
[1723894013501,3.8464,2600.1,2600.0,1.4523]
[1723894013701,4.64968,2600.2,2600.0,1.4523]
[1723894014311,8.49608,2600.2,2600.0,1.4523]
[1723894014713,1.44192,2600.1,2600.0,1.4523]
[1723894015414,4.64969,2600.2,2600.0,1.4523]
[1723894017719,1.44189,2600.2,2600.0,1.4523]
[1723894018527,4.71710701,2600.3,2600.1,1.108]
[1723894018816,6.64676472,2600.5,2600.2,1.108]
[1723894018817,5.03716372,2600.5,2600.2,1.108]
[1723894019112,5.03716372,2600.5,2600.4,1.108]
[1723894019319,5.42620701,2600.6,2600.4,1.108]
[1723894019912,1.50930701,2600.5,2600.4,1.108]
[1723894021516,5.92780801,2600.6,2600.4,1.108]
[1723894022221,0.23888342,2600.5,2600.4,1.108]
[1723894022522,2.24979143,2600.5,2600.4,1.108]
[1723894022911,5.92780801,2600.6,2600.4,1.108]
[1723894023112,2.24979135,2600.5,2600.4,1.108]
[1723894023513,0.23888334,2600.5,2600.4,4.9536]
[1723894023714,1.510965,2600.7,2600.4,14.3226222]
[1723894023924,1.510965,2600.8,2600.5,4.03519159]
[1723894024113,1.510965,2600.8,2600.7,1.108]
[1723894024315,1.510965,2600.9,2600.7,1.108]
[1723894025022,1.510965,2600.8,2600.7,1.108]
[1723894025419,1.510965,2600.9,2600.7,1.108]
[1723894028626,1.510965,2600.9,2600.7,4.9528]
[1723894028830,0.00577134,2601.1,2600.8,6.29110019]
[1723894029022,0.00577134,2601.1,2601.0,1.108]
[1723894029417,0.00577134,2601.1,2601.0,4.9528]
[1723894030426,0.00577134,2601.1,2601.0,1.108]
[1723894032326,0.00577134,2601.1,2601.0,4.9528]
[1723894036031,0.00577134,2601.1,2601.0,5.3015]
[1723894039834,4.65495134,2601.1,2600.9,0.3746]
[1723894040035,0.7171,2601.0,2600.9,1.108]
[1723894042426,2.15853,2601.0,2600.9,1.108]
[1723894043236,2.15853,2601.0,2600.7,0.3755]
[1723894043237,1.44152,2600.9,2600.8,1.108]
[1723894044935,2.15856,2601.0,2600.8,1.108]
[1723894047032,0.7171,2601.0,2600.8,1.108]
[1723894048540,2.15853,2601.0,2600.8,1.108]
[1723894054335,0.7171,2601.0,2600.8,1.108]
[1723894054738,0.7171,2601.0,2600.9,0.3789]
[1723894055238,4.5619,2601.0,2600.9,0.3789]
[1723894055444,0.7171,2601.0,2600.9,0.3789]
[1723894055745,4.5619,2601.0,2600.9,0.3789]
[1723894058746,0.7171,2601.0,2600.9,0.3789]
[1723894059332,0.3604,2601.0,2600.9,1.4869]
[1723894064646,1.51673634,2601.1,2600.9,1.4869]
[1723894069463,1.510965,2601.0,2600.9,1.4869]
[1723894070563,1.51673634,2601.1,2600.9,1.4869]
[1723894070957,1.510965,2601.0,2600.9,1.4869]
[1723894071467,1.51673634,2601.1,2600.9,1.4869]
[1723894072160,1.510965,2601.0,2600.9,1.4869]
[1723894072560,1.51673634,2601.1,2600.9,1.4869]
[1723894072962,1.510965,2601.0,2600.9,1.4869]
[1723894074773,2.01667935,2601.1,2600.9,1.4869]
[1723894075375,1.51113197,2601.0,2600.9,1.4869]
[1723894075765,2.01667935,2601.1,2600.9,1.4869]
[1723894076067,1.51113531,2601.0,2600.9,1.4869]
[1723894077370,1.51118341,2601.0,2600.9,1.4869]
[1723894077575,1.51116675,2601.0,2600.9,1.4869]
[1723894077777,1.86306675,2601.0,2600.9,1.4869]
[1723894078567,0.3519,2601.0,2600.9,1.4869]
[1723894078966,1.86317559,2601.0,2600.9,1.4869]
[1723894079977,2.60161761,2601.0,2600.9,1.4869]
[1723894080579,4.1967,2601.0,2600.8,1.108]
[1723894080877,2.25217477,2600.9,2600.8,1.108]
[1723894081376,2.25217477,2600.9,2600.8,2.11277019]
[1723894082070,1.87407477,2600.9,2600.8,2.11277019]
[1723894082375,3.5704,2600.9,2600.8,1.108]
[1723894082780,1.87428313,2600.9,2600.8,2.11277019]
[1723894083076,1.87428313,2600.9,2600.8,1.108]
[1723894083467,1.87428313,2600.9,2600.8,2.11277019]
[1723894084380,0.3626,2600.9,2600.8,2.11277019]
[1723894084576,1.51203031,2600.9,2600.8,2.11277019]
[1723894084772,1.51203031,2600.9,2600.8,8.38222266]
[1723894084968,1.51203031,2600.9,2600.8,7.8808055]
[1723894085270,1.51203031,2600.9,2600.8,7.88094543]
[1723894085474,1.51203031,2600.9,2600.8,8.3822177]
[1723894085975,1.51203031,2600.9,2600.8,7.88095196]
[1723894086177,1.51203031,2600.9,2600.8,6.87506242]
[1723894086575,1.51203031,2600.9,2600.8,8.3822177]
[1723894087879,1.51203031,2601.0,2600.8,8.3822177]
[1723894088072,1.51203031,2601.0,2600.9,4.03605243]
[1723894088272,1.51203031,2601.0,2600.9,4.37775243]
[1723894088878,1.51203031,2601.0,2600.9,3.37196242]
[1723894089076,1.51203031,2601.0,2600.9,4.37770901]
[1723894090373,2.01667935,2601.1,2600.9,4.37770901]
[1723894090574,2.01667935,2601.1,2601.0,0.3477]
[1723894090779,2.25543551,2601.1,2601.0,0.3477]
[1723894090979,2.01667935,2601.1,2601.0,0.3477]
[1723894091277,2.25544141,2601.1,2601.0,0.3477]
[1723894092382,2.25544019,2601.1,2601.0,0.3477]
[1723894093277,2.25544019,2601.1,2600.9,2.45544659]
[1723894093478,0.60966084,2601.0,2600.9,2.45544659]
[1723894094073,0.23876084,2601.0,2600.9,2.45544659]
[1723894094273,2.01667935,2601.1,2600.9,2.45544659]
[1723894094474,2.01667935,2601.1,2601.0,0.3674]
[1723894095084,2.25544195,2601.1,2601.0,0.3674]
[1723894098974,2.01667935,2601.1,2601.0,0.3674]
[1723894099179,2.25543954,2601.1,2600.9,2.45544659]
[1723894099380,0.23876019,2601.0,2600.9,2.45544659]
[1723894099586,2.2496682,2601.0,2600.9,2.45544659]
[1723894103182,2.01090801,2601.0,2600.9,2.45544659]
[1723894103387,2.24969124,2601.0,2600.9,2.45544659]
[1723894103586,2.24969124,2601.0,2600.9,4.37775962]
[1723894103793,2.24969113,2601.0,2600.9,4.37775962]
[1723894104291,2.24969113,2601.0,2600.9,3.37201303]
[1723894104479,2.24969113,2601.0,2600.9,4.37892291]
[1723894106585,2.24969113,2601.0,2600.9,4.37893088]
[1723894106792,2.24969113,2601.0,2600.9,4.87917628]
[1723894106983,2.24969113,2601.0,2600.9,8.72397628]
[1723894107183,0.23878312,2601.0,2600.9,8.72397628]
[1723894107394,2.01667935,2601.1,2600.9,8.72397628]
[1723894107581,2.01667935,2601.1,2601.0,2.92919965]
[1723894107786,2.25543463,2601.1,2601.0,2.92919965]
[1723894107990,2.25543463,2601.1,2601.0,3.42947628]
[1723894109700,0.24452662,2601.1,2601.0,3.42947628]
[1723894110294,2.25543463,2601.1,2601.0,3.42947628]
[1723894110595,0.24452662,2601.1,2601.0,3.42947628]
[1723894110998,0.24452662,2601.1,2601.0,3.4293009]
[1723894111903,2.01667935,2601.1,2601.0,3.4293009]
[1723894112204,2.25543162,2601.1,2601.0,3.4293009]
[1723894112393,0.24452361,2601.1,2601.0,3.4293009]
[1723894114906,0.24452361,2601.1,2601.0,1.92214562]
[1723894115703,0.24452361,2601.1,2601.0,1.92216656]
[1723894116394,0.24452361,2601.1,2601.0,1.00691224]
[1723894116395,2.25543162,2601.1,2601.0,1.00691224]
[1723894116992,2.25545585,2601.1,2601.0,1.00691224]
[1723894117897,0.24454784,2601.1,2600.9,2.45661224]
[1723894118095,2.25558563,2601.0,2600.9,2.45661224]
[1723894118395,2.25558563,2601.0,2600.9,4.37891592]
[1723894120398,0.2387765,2601.0,2600.9,3.37199987]
[1723894120806,2.02258047,2601.1,2600.9,3.37199987]
[1723894121100,0.23877397,2601.0,2600.9,2.95685528]
[1723894121295,2.2555831,2601.0,2600.9,4.37898586]
[1723894121496,0.23877397,2601.0,2600.9,8.72390034]
[1723894121702,2.02258047,2601.1,2600.9,8.72390034]
[1723894121890,2.02258047,2601.1,2601.0,1.00695379]
[1723894122093,2.26134181,2601.1,2601.0,1.00695379]
[1723894122894,0.24453268,2601.1,2600.9,2.45665379]
[1723894123100,2.02259174,2601.1,2601.0,1.00695379]
[1723894123303,2.26136506,2601.1,2601.0,1.00695379]
[1723894124200,0.24454466,2601.1,2601.0,1.00695379]
[1723894124400,0.24454466,2601.1,2600.9,2.45665379]
[1723894124708,2.62101303,2601.0,2600.9,2.45665379]
[1723894125193,2.6210324,2601.0,2600.9,2.45665379]
[1723894126296,2.62103096,2601.0,2600.9,2.45665379]
[1723894126592,2.62103096,2601.0,2600.9,4.37895977]
[1723894129399,2.62103096,2601.0,2600.9,3.37198557]
[1723894129601,2.62101692,2601.0,2600.9,4.87914085]
[1723894130108,2.38223971,2601.0,2600.9,4.87914085]
[1723894130304,2.62101257,2601.0,2600.9,4.87914085]
[1723894131304,0.23877286,2601.0,2600.9,4.87914085]
[1723894133200,2.02271105,2601.1,2600.9,8.72394085]
[1723894133406,2.02271105,2601.1,2601.0,3.42944085]
[1723894133607,2.26146995,2601.1,2601.0,3.42944085]
[1723894134109,3.49749335,2601.7,2601.1,3.8448]
[1723894134110,1.62372669,2601.7,2601.1,3.8448]
[1723894134302,2.51798448,2601.9,2601.6,2.61855237]
[1723894134500,6.76634119,2602.1,2601.8,1.108]
[1723894134708,4.67932448,2602.1,2602.0,1.108]
[1723894134897,5.40965128,2602.1,2602.0,1.108]
[1723894135106,7.81602277,2602.1,2602.0,1.11137375]
[1723894135305,5.29808554,2602.1,2602.0,1.11137375]
[1723894135512,7.32393263,2602.1,2602.0,1.11137375]
[1723894135812,7.81566522,2602.1,2602.0,1.11137375]
[1723894136000,7.81566522,2602.1,2602.0,0.00337375]
[1723894136202,7.32393263,2602.1,2602.0,0.00337375]
[1723894138305,4.80634479,2602.1,2602.0,0.00337375]
[1723894138706,4.56771149,2602.1,2602.0,0.00337375]
[1723894139012,9.87279968,2602.1,2602.0,0.00337375]
[1723894139216,9.87279968,2602.1,2601.8,0.00577134]
[1723894139217,1.44095,2601.9,2601.8,0.00577134]
[1723894139405,5.99544225,2601.9,2601.8,0.00577134]
[1723894139709,14.83864225,2601.9,2601.8,0.00577134]
[1723894139905,15.21474225,2601.9,2601.8,0.00577134]
[1723894140306,15.21474225,2601.9,2601.8,0.00851683]
[1723894141610,14.97605,2601.9,2601.8,0.00851683]
[1723894141799,15.21474234,2601.9,2601.8,0.00851683]
[1723894142113,10.21474245,2601.9,2601.8,0.00851683]
[1723894142309,9.97605,2601.9,2601.8,0.00851683]
[1723894142613,12.73235558,2601.9,2601.8,0.00851683]
[1723894143509,12.49363784,2601.9,2601.8,0.00851683]
[1723894143707,12.73236289,2601.9,2601.8,0.00851683]
[1723894144009,17.73236289,2601.9,2601.8,0.00851683]
[1723894145414,15.21477505,2601.9,2601.8,0.00851683]
[1723894145613,17.72987936,2601.9,2601.8,0.00851683]
[1723894145813,15.21477505,2601.9,2601.8,0.00851683]
[1723894146010,17.72984315,2601.9,2601.8,0.00851683]
[1723894146505,15.21477505,2601.9,2601.8,0.00851683]
[1723894146814,17.72986983,2601.9,2601.8,0.00851683]
[1723894147706,14.52206983,2601.9,2601.8,0.00851683]
[1723894147907,17.72986983,2601.9,2601.8,0.00851683]
[1723894148107,15.21477505,2601.9,2601.8,0.00851683]
[1723894148312,15.21477315,2601.9,2601.8,0.00851683]
[1723894148512,12.00697315,2601.9,2601.8,0.00851683]
[1723894148813,15.21477315,2601.9,2601.8,0.00851683]
[1723894149617,15.51640049,2601.9,2601.8,0.00851683]
[1723894150924,1.44113,2601.6,2601.2,0.3674]
[1723894151225,3.2078,2601.3,2601.2,0.3674]
[1723894152019,3.2078,2601.3,2601.2,0.37160931]
[1723894153021,3.2078,2601.3,2601.2,1.47960931]
[1723894156524,1.81328,2601.5,2601.2,0.37160931]
[1723894156818,4.6879,2601.5,2601.2,0.37160931]
[1723894157023,1.44128,2601.3,2601.2,0.00420931]
[1723894157425,5.28528,2601.3,2601.2,0.00420931]
[1723894157721,1.4414,2601.1,2601.0,0.00577134]
[1723894157921,1.44166,2600.7,2600.3,0.3684]
[1723894158119,1.44166,2600.7,2600.3,1.4764]
[1723894158120,3.2078,2600.5,2600.3,1.4764]
[1723894158627,3.5816,2600.5,2600.3,1.47924725]
[1723894162116,0.3702,2600.6,2600.4,1.108]
[1723894164122,0.3702,2600.6,2600.3,0.37124725]
[1723894164427,0.3702,2600.6,2600.4,1.108]
[1723894168030,1.11377134,2600.7,2600.4,1.108]
[1723894172237,2.55539134,2600.7,2600.4,1.108]
[1723894172438,3.2078,2600.5,2600.3,0.37124725]
[1723894173337,1.108,2600.6,2600.3,0.37124725]
[1723894173740,0.00577134,2600.7,2600.4,1.108]
[1723894173934,0.00577134,2600.7,2600.5,1.108]
[1723894174134,0.00577134,2600.7,2600.6,1.4807]
[1723894174826,14.1318,2601.2,2600.6,5.3255]
[1723894175029,14.1318,2601.2,2600.9,1.108]
[1723894175230,3.2078,2601.2,2601.0,0.3467]
[1723894176137,4.3158,2601.2,2601.0,0.3467]
[1723894176738,1.108,2601.2,2601.0,0.3467]
[1723894176937,3.2078,2601.2,2601.0,0.3467]
[1723894177131,4.3158,2601.2,2601.0,0.3467]
[1723894177530,1.108,2601.2,2601.0,0.3467]
[1723894177932,4.3158,2601.2,2601.0,0.3467]
[1723894178332,4.6695,2601.2,2601.0,0.3467]
[1723894178637,1.108,2601.1,2601.0,0.3467]
[1723894179635,6.39419,2601.1,2600.7,0.3529]
[1723894179835,1.108,2600.9,2600.7,0.6956]
[1723894181241,1.4817,2601.0,2600.7,1.8036]
[1723894181836,4.6895,2601.0,2600.7,1.8036]
[1723894182440,3.2078,2601.0,2600.7,1.8036]